Workbook

Sheet Sheet1
A1: INSTRUCTIONS: Use this form when a single information collection document involves multiple reporting and recordkeeping requirements. The totals of the figures in cols. should be entered in item 13 of OMB-83-I: cols. (D) &/or (I) = 13a (respondent is only counted once); cols. F & I = 13b; cols. H & K = 13c. (F)Total/(D)Total = (E)Average (H)Total/(F)Total = (G)Average (K)Total/(I)Total = (J)Average NOTE: The columns will calculate automatically. If Col. E's response is something other than annually, i.e., 1/6 years, list as "1/6" & decimal will display. | I1: TITLE OF INFORMATION COLLECTION DOCUMENT | O1: OMB NO. | P1: 0560-0294
I3: Wildfires and Hurricanes Indemnity Program + (WHIP+)
O4: DATE PREPARED
O5: 2019-08-13
A10: IDENTIFICATION OF REPORTING OR RECORDKEEPING REQUIREMENT | H10: ANNUAL BURDEN
H12: REPORTS | N12: RECORDS | Q12: RESPONDENT COST
L14: TOTAL BURDEN HOURS | P14: TOTAL
G15: FORMS NO (S) | H15: NO. OF | I15: NO OF | J15: TOTAL ANNUAL | K15: HOURS | L15: (Col. F x G) | N15: NO. OF | O15: ANNUAL | P15: RECORD- | Q15: COST | R15: TOTAL
A16: SECTION OF | B16: DESCRIPTION | G16: (If "none" | H16: RESPONDENTS | I16: RESPONSES | J16: RESPONSES | K16: PER | L16: (H) | N16: RECORD- | O16: HOURS PER | P16: KEEPING HOURS | Q16: PER | R16: COST
A17: REGS. | G17: so state) | I17: PER | J17: (Col. D x E) | K17: RESPONSE | N17: KEEPERS | O17: RECORD- | P17: (Col. I x J) | Q17: HOUR | R17: (Col. H x L)
I18: RESPONDENT | L18: EXEMPT | M18: NON-EXEMPT | O18: KEEPER
A19: (A) | B19: (B) | G19: (C) | H19: (D) | I19: (E) | J19: (F) | K19: (G) | N19: (I) | O19: (J) | P19: (K) | Q19: (L) | R19: (M)
A20: 7 CFR 760 and 1410 | B20: Wildfires and Hurricanes Indemnity Program + Application | G20: FSA-894 | H20: 21,378 | I20: 1 | J20: =SUM(H20*I20) -> 21,378 | K20: 0.50 | M20: =SUM(J20*K20) -> 10,689 | Q20: $49.87 | R20: =SUM(M20*Q20) -> 533,060
A21: 7 CFR 760 and 1410 | B21: Crop Insurance and/or NAP Coverage Agreement | G21: FSA-895 | H21: 21,378 | I21: 1 | J21: 21,378 | K21: 0.08 | M21: 1,710 | Q21: $49.87 | R21: 85,290
A22: 7 CFR 760 and 1410 | B22: Request for an Exception to the WHIP+ Payment Limitation of $125,000, WHIP+ ONLY | G22: FSA-896 | H22: 16,332 | I22: 1 | J22: 16,332 | K22: 0.08 | M22: 1,307 | Q22: $49.87 | R22: 65,158
A23: 7 CFR 760 and 1410 | B23: Actual Production History and Approved Yield Record (WHIP+ Select Crops Only) | G23: FSA-897 | H23: 4,000 | I23: 1 | J23: 4,000 | K23: 0.08 | M23: 320 | Q23: $49.87 | R23: 15,958
A24: 7 CFR 760 and 1410 | B24: Wildfires and Hurricanes Indemnity Program Application (Continuation Sheet) | G24: FSA-894 Continuation | H24: 5,000 | I24: 1 | J24: 12,250 | K24: 0.25 | M24: 3,063 | Q24: $49.87 | R24: 152,727
A25: 7 CFR 760.1600 | B25: On-Farm Storage Loss Certification | G25: FSA-272 | H25: 5,000 | I25: 1 | J25: 5,000 | K25: 0.25 | M25: 1,250 | Q25: $49.87 | R25: =SUM(M25*Q25) -> 62,338
A26: 7 CFR 760.1700 | B26: WHIP Milk Loss Application | G26: FSA-375 | H26: 200 | I26: 1 | J26: 200 | K26: 0.33 | M26: 66 | Q26: $49.87 | R26: =SUM(M26*Q26) -> 3,291
B27: Farm Operating Plan for Payment Eligibly | G27: CCC-902 | H27: 3,000 | I27: 1 | K27: 0.50 | L27: 1,500 | R27: =SUM(M26*Q27) -> 0
B28: Highly Erodible Lan Conservation (HELC) and Wetland Conservation Certification | G28: AD-1026 | H28: 3,000 | I28: 1 | K28: 0.08 | L28: 1,500 | R28: =SUM(M26*Q28) -> 0
B29: Report of Acreage | G29: FSA-578 | H29: 4,000 | I29: 1 | K29: 0.50 | L29: 2,000 | R29: =SUM(M29*Q29) -> 0
B30: Tree Assistance Application | G30: FSA-899 | H30: 4,000 | K30: 0.25 | L30: 1,000
A31: 7 CFR 460 | B31: Agreement (AIP and RMA.) | H31: 14 | I31: 1 | J31: 14 | K31: 0.08 | M31: =+J31*K31 -> 1
B32: SUBTOTAL | J32: =SUM(J20:J31) -> 80,552 | L32: =SUM(L27:L31) -> 6,000 | M32: =SUM(M20:M31) -> 18,405 | P32: =SUM(P20:P31) -> 0.00 | R32: =SUM(R20:R31) -> 917,822
B33: TOTAL OF ALL PAGES | J33: =SUM(J32) -> 80,552 | L33: 6,000 | M33: =SUM(M32) -> 18,405 | P33: =SUM(P32) -> 0.00 | R33: =SUM(R32) -> 917,822
A34: TOTAL - COLUMNS "F" AND "I" = OMB 83-I, 13b; COLUMNS "H" AND "K" = OMB 83-I, 13c | J34: =SUM(J33+N33) -> 80,552 | M34: =SUM(M33+P33) -> 18,405
